[Event "*** SCC Grand Prix: Titled Tuesday Blitz"]
[Site "Chess.com"]
[Date "2020.07.07"]
[Round "1"]
[White "Morshynska"]
[Black "Haykoooo0o"]
[Result "0-1"]
[WhiteElo "2182"]
[BlackElo "2537"]
[TimeControl "180+1"]
[EndTime "10:05:54 PDT"]
[Termination "Haykoooo0o won on time"]

1. e4 {[%clk 0:02:57.1]} 1... c5 {[%clk 0:02:56.8]} 2. Nf3 {[%clk 0:02:56.4]}
2... Nc6 {[%clk 0:02:55.6]} 3. d4 {[%clk 0:02:55.9]} 3... cxd4 {[%clk 0:02:56]}
4. Nxd4 {[%clk 0:02:56.8]} 4... e5 {[%clk 0:02:56.4]} 5. Nb5 {[%clk 0:02:56.4]}
5... a6 {[%clk 0:02:56]} 6. Nd6+ {[%clk 0:02:55.9]} 6... Bxd6 {[%clk 0:02:56.1]}
7. Qxd6 {[%clk 0:02:56.8]} 7... Qf6 {[%clk 0:02:57]} 8. Qxf6 {[%clk 0:02:48.9]}
8... Nxf6 {[%clk 0:02:57.9]} 9. Nc3 {[%clk 0:02:43.5]} 9... d6 {[%clk
0:02:54.8]} 10. Bg5 {[%clk 0:02:26.9]} 10... Be6 {[%clk 0:02:52.9]} 11. O-O-O
{[%clk 0:02:12.4]} 11... O-O-O {[%clk 0:02:50.2]} 12. f3 {[%clk 0:01:59.6]}
12... h6 {[%clk 0:02:46.3]} 13. Bxf6 {[%clk 0:01:36.8]} 13... gxf6 {[%clk
0:02:47.2]} 14. g4 {[%clk 0:01:32.2]} 14... Ne7 {[%clk 0:02:41.5]} 15. h4 {[%clk
0:01:15.3]} 15... d5 {[%clk 0:02:38.9]} 16. h5 {[%clk 0:01:07.4]} 16... d4
{[%clk 0:02:32.8]} 17. Na4 {[%clk 0:00:52.5]} 17... Kc7 {[%clk 0:02:30.2]} 18.
Nc5 {[%clk 0:00:42.2]} 18... Kc6 {[%clk 0:02:27.1]} 19. Nd3 {[%clk 0:00:37.5]}
19... b5 {[%clk 0:02:21.7]} 20. Be2 {[%clk 0:00:30.5]} 20... Bc4 {[%clk
0:02:17.1]} 21. Nb4+ {[%clk 0:00:17.4]} 21... Kb6 {[%clk 0:02:15.2]} 22. Bxc4
{[%clk 0:00:15.6]} 22... bxc4 {[%clk 0:02:16.1]} 23. a3 {[%clk 0:00:14.6]} 23...
a5 {[%clk 0:02:14.9]} 24. Na2 {[%clk 0:00:14.3]} 24... Kc5 {[%clk 0:02:12]} 25.
Kd2 {[%clk 0:00:13.3]} 25... Rb8 {[%clk 0:02:11]} 26. Rb1 {[%clk 0:00:13.2]}
26... Nc6 {[%clk 0:02:07.8]} 27. Rhc1 {[%clk 0:00:12.7]} 27... Rhd8 {[%clk
0:02:06.3]} 28. b4+ {[%clk 0:00:08.3]} 28... axb4 {[%clk 0:02:04.2]} 29. Nxb4
{[%clk 0:00:06.5]} 29... Nxb4 {[%clk 0:02:03.8]} 30. axb4+ {[%clk 0:00:06.6]}
30... Rxb4 {[%clk 0:02:04.2]} 31. Rxb4 {[%clk 0:00:05.5]} 31... Kxb4 {[%clk
0:02:05.1]} 32. Rb1+ {[%clk 0:00:06.4]} 32... Kc5 {[%clk 0:02:03.6]} 33. Rb7
{[%clk 0:00:05.7]} 33... d3 {[%clk 0:01:49]} 34. Rxf7 {[%clk 0:00:04.6]} 34...
c3+ {[%clk 0:01:46.6]} 35. Kd1 {[%clk 0:00:03.1]} 35... d2 {[%clk 0:01:46.2]}
36. Rc7+ {[%clk 0:00:02.1]} 36... Kd4 {[%clk 0:01:46.2]} 0-1

[Event "*** SCC Grand Prix: Titled Tuesday Blitz"]
[Site "Chess.com"]
[Date "2020.07.07"]
[Round "1"]
[White "Nemsko"]
[Black "Rodalquilar"]
[Result "0-1"]
[WhiteElo "2304"]
[BlackElo "2629"]
[TimeControl "180+1"]
[EndTime "10:05:55 PDT"]
[Termination "Rodalquilar won by resignation"]

1. e4 {[%clk 0:03:00.9]} 1... Nf6 {[%clk 0:02:56.1]} 2. e5 {[%clk 0:03:00.8]}
2... Nd5 {[%clk 0:02:56.6]} 3. d4 {[%clk 0:03:01.1]} 3... d6 {[%clk 0:02:57.1]}
4. c4 {[%clk 0:03:01.8]} 4... Nb6 {[%clk 0:02:56.9]} 5. exd6 {[%clk 0:03:02]}
5... cxd6 {[%clk 0:02:57.8]} 6. h3 {[%clk 0:03:02.3]} 6... g6 {[%clk 0:02:57.9]}
7. Nf3 {[%clk 0:03:02.7]} 7... Bg7 {[%clk 0:02:58.3]} 8. Be2 {[%clk 0:03:01.9]}
8... O-O {[%clk 0:02:57.8]} 9. O-O {[%clk 0:03:02.1]} 9... Nc6 {[%clk
0:02:45.8]} 10. Be3 {[%clk 0:03:00.4]} 10... Bf5 {[%clk 0:02:45.5]} 11. Nc3
{[%clk 0:02:58.9]} 11... d5 {[%clk 0:02:45.8]} 12. c5 {[%clk 0:02:57.7]} 12...
Nc8 {[%clk 0:02:45.3]} 13. a3 {[%clk 0:02:54.5]} 13... e6 {[%clk 0:02:42.7]} 14.
b4 {[%clk 0:02:50.6]} 14... N8e7 {[%clk 0:02:42.6]} 15. Qd2 {[%clk 0:02:39.8]}
15... Be4 {[%clk 0:02:38.9]} 16. Ng5 {[%clk 0:02:31.4]} 16... Nf5 {[%clk
0:02:34.1]} 17. Ngxe4 {[%clk 0:02:16.5]} 17... dxe4 {[%clk 0:02:31.2]} 18. Nxe4
{[%clk 0:02:17.4]} 18... Ncxd4 {[%clk 0:02:24]} 19. Rad1 {[%clk 0:02:14.2]}
19... Qh4 {[%clk 0:02:16.5]} 20. Bd3 {[%clk 0:02:00.4]} 20... h6 {[%clk
0:01:51.1]} 21. f3 {[%clk 0:01:34.6]} 21... Rad8 {[%clk 0:01:41.6]} 22. Bf2
{[%clk 0:01:33.1]} 22... Qe7 {[%clk 0:01:25.7]} 23. Qa2 {[%clk 0:01:17.6]} 23...
Be5 {[%clk 0:01:20.3]} 24. Bc4 {[%clk 0:01:10.9]} 24... Bb8 {[%clk 0:01:18.7]}
25. Nd6 {[%clk 0:00:56.1]} 25... Bxd6 {[%clk 0:01:11.4]} 26. cxd6 {[%clk
0:00:53.5]} 26... Rxd6 {[%clk 0:01:11.6]} 27. Rd2 {[%clk 0:00:50.3]} 27... Rfd8
{[%clk 0:01:09.5]} 28. Rfd1 {[%clk 0:00:50]} 28... Qg5 {[%clk 0:01:08.2]} 29.
Kh1 {[%clk 0:00:43.8]} 29... Nxf3 {[%clk 0:00:53.9]} 30. Rxd6 {[%clk 0:00:42.8]}
30... Rxd6 {[%clk 0:00:54.1]} 31. Rxd6 {[%clk 0:00:42.2]} 31... Qc1+ {[%clk
0:00:54.1]} 0-1

[Event "*** SCC Grand Prix: Titled Tuesday Blitz"]
[Site "Chess.com"]
[Date "2020.07.07"]
[Round "1"]
[White "UCantHandleDenker"]
[Black "Vision_64"]
[Result "1-0"]
[WhiteElo "2539"]
[BlackElo "2185"]
[TimeControl "180+1"]
[EndTime "10:05:56 PDT"]
[Termination "UCantHandleDenker won by resignation"]

1. Nf3 {[%clk 0:02:57.7]} 1... Nf6 {[%clk 0:02:59.5]} 2. g3 {[%clk 0:02:56.3]}
2... b6 {[%clk 0:02:59.5]} 3. Bg2 {[%clk 0:02:54.7]} 3... Bb7 {[%clk 0:03:00.1]}
4. O-O {[%clk 0:02:53.9]} 4... e6 {[%clk 0:03:00.3]} 5. c4 {[%clk 0:02:48.4]}
5... c5 {[%clk 0:03:00.2]} 6. Nc3 {[%clk 0:02:47.4]} 6... Be7 {[%clk 0:02:59.5]}
7. d4 {[%clk 0:02:46.7]} 7... cxd4 {[%clk 0:02:59.5]} 8. Qxd4 {[%clk 0:02:45.6]}
8... d6 {[%clk 0:02:54.5]} 9. Rd1 {[%clk 0:02:41.8]} 9... a6 {[%clk 0:02:51.4]}
10. Bg5 {[%clk 0:02:36.9]} 10... Nbd7 {[%clk 0:02:48.6]} 11. Qd2 {[%clk
0:02:31.3]} 11... O-O {[%clk 0:02:46.1]} 12. Bf4 {[%clk 0:02:19.6]} 12... Ne8
{[%clk 0:02:36.7]} 13. Rac1 {[%clk 0:02:18.7]} 13... Rc8 {[%clk 0:02:35.1]} 14.
b3 {[%clk 0:02:18.2]} 14... Ndf6 {[%clk 0:02:22.7]} 15. h3 {[%clk 0:02:07.3]}
15... d5 {[%clk 0:02:16.6]} 16. Ne5 {[%clk 0:02:01.1]} 16... Bb4 {[%clk
0:02:02.5]} 17. Qe3 {[%clk 0:01:46.8]} 17... Bc5 {[%clk 0:01:22.8]} 18. Qd3
{[%clk 0:01:43.2]} 18... Nc7 {[%clk 0:01:10.9]} 19. Na4 {[%clk 0:01:32.8]} 19...
Ba3 {[%clk 0:01:03.1]} 20. Rc2 {[%clk 0:01:23.3]} 20... b5 {[%clk 0:01:03.3]}
21. Nb6 {[%clk 0:01:14.5]} 21... bxc4 {[%clk 0:00:56.5]} 22. bxc4 {[%clk
0:01:13.7]} 22... dxc4 {[%clk 0:00:54.8]} 23. Nexc4 {[%clk 0:01:04.2]} 23...
Qxd3 {[%clk 0:00:47.5]} 24. Rxd3 {[%clk 0:01:05.1]} 24... Bxg2 {[%clk
0:00:47.5]} 25. Kxg2 {[%clk 0:01:00.8]} 25... Nb5 {[%clk 0:00:27]} 26. Nxc8
{[%clk 0:00:57]} 26... Rxc8 {[%clk 0:00:27.9]} 27. Nxa3 {[%clk 0:00:56.3]} 1-0

[Event "*** SCC Grand Prix: Titled Tuesday Blitz"]
[Site "Chess.com"]
[Date "2020.07.07"]
[Round "1"]
[White "ega2006"]
[Black "abykhovsky"]
[Result "0-1"]
[WhiteElo "2365"]
[BlackElo "2685"]
[TimeControl "180+1"]
[EndTime "10:05:59 PDT"]
[Termination "abykhovsky won by resignation"]

1. c4 {[%clk 0:02:55.7]} 1... c5 {[%clk 0:02:58.9]} 2. Nc3 {[%clk 0:02:55.2]}
2... g6 {[%clk 0:02:58.9]} 3. Nf3 {[%clk 0:02:54.9]} 3... Bg7 {[%clk 0:02:59.3]}
4. e3 {[%clk 0:02:55.4]} 4... Nf6 {[%clk 0:02:58.8]} 5. d4 {[%clk 0:02:54.9]}
5... cxd4 {[%clk 0:02:59.7]} 6. exd4 {[%clk 0:02:55.1]} 6... O-O {[%clk
0:03:00.2]} 7. Be2 {[%clk 0:02:47.1]} 7... d5 {[%clk 0:02:59.3]} 8. O-O {[%clk
0:02:44]} 8... Nc6 {[%clk 0:02:59.3]} 9. cxd5 {[%clk 0:02:36.4]} 9... Nxd5
{[%clk 0:03:00.2]} 10. Bc4 {[%clk 0:02:18.3]} 10... Nb6 {[%clk 0:02:59]} 11. Bb3
{[%clk 0:02:16.4]} 11... Nxd4 {[%clk 0:02:58.7]} 12. Be3 {[%clk 0:02:10.5]}
12... Nxb3 {[%clk 0:02:48.7]} 13. Qxb3 {[%clk 0:02:09.7]} 13... Be6 {[%clk
0:02:48.9]} 14. Qb4 {[%clk 0:02:04.2]} 14... Nd5 {[%clk 0:02:47.4]} 15. Qh4
{[%clk 0:01:53.3]} 15... Nxe3 {[%clk 0:02:39.2]} 16. fxe3 {[%clk 0:01:54.2]}
16... h6 {[%clk 0:02:34.2]} 17. Rad1 {[%clk 0:01:51.2]} 17... Qb6 {[%clk
0:02:33]} 18. Nd4 {[%clk 0:01:50.7]} 18... g5 {[%clk 0:02:29.1]} 19. Qf2 {[%clk
0:01:47.3]} 19... Rad8 {[%clk 0:02:27.3]} 20. Nxe6 {[%clk 0:01:28.6]} 20... Qxe6
{[%clk 0:02:25.7]} 21. Rxd8 {[%clk 0:01:29.5]} 21... Rxd8 {[%clk 0:02:26]} 22.
Qf3 {[%clk 0:01:26.9]} 22... Rd7 {[%clk 0:02:23.9]} 23. Rd1 {[%clk 0:01:21.2]}
23... Rxd1+ {[%clk 0:02:18.1]} 24. Nxd1 {[%clk 0:01:22.1]} 24... Qxa2 {[%clk
0:01:52.3]} 25. Qxb7 {[%clk 0:01:19]} 25... Qb1 {[%clk 0:01:52.3]} 26. Qc8+
{[%clk 0:01:16.6]} 26... Kh7 {[%clk 0:01:48.3]} 27. Qd7 {[%clk 0:01:17.5]} 27...
Bxb2 {[%clk 0:01:45.5]} 28. Kf1 {[%clk 0:01:16]} 28... Bf6 {[%clk 0:01:44.3]}
29. Ke1 {[%clk 0:01:06.3]} 29... a5 {[%clk 0:01:38.8]} 30. Ke2 {[%clk
0:01:01.8]} 30... Kg7 {[%clk 0:01:36.8]} 31. Nf2 {[%clk 0:00:48.6]} 31... Qc2+
{[%clk 0:01:31.1]} 32. Kf3 {[%clk 0:00:46.4]} 32... a4 {[%clk 0:01:30.9]} 33.
Ne4 {[%clk 0:00:42.3]} 33... a3 {[%clk 0:01:29.3]} 34. Nxf6 {[%clk 0:00:41.3]}
34... exf6 {[%clk 0:01:30.2]} 35. Qa7 {[%clk 0:00:29.6]} 35... Qb2 {[%clk
0:01:28.8]} 36. h4 {[%clk 0:00:21.7]} 36... a2 {[%clk 0:01:27.6]} 37. hxg5
{[%clk 0:00:21.3]} 37... hxg5 {[%clk 0:01:28]} 0-1

[Event "*** SCC Grand Prix: Titled Tuesday Blitz"]
[Site "Chess.com"]
[Date "2020.07.07"]
[Round "1"]
[White "Rozum_Ivan"]
[Black "lucachess49"]
[Result "0-1"]
[WhiteElo "2655"]
[BlackElo "2381"]
[TimeControl "180+1"]
[EndTime "10:05:59 PDT"]
[Termination "lucachess49 won by resignation"]

1. d4 {[%clk 0:02:58.1]} 1... Nf6 {[%clk 0:02:59.6]} 2. Nf3 {[%clk 0:02:58.1]}
2... e6 {[%clk 0:03:00]} 3. c4 {[%clk 0:02:58.1]} 3... a6 {[%clk 0:02:57.8]} 4.
Nc3 {[%clk 0:02:55.3]} 4... d5 {[%clk 0:02:56.1]} 5. cxd5 {[%clk 0:02:55.7]}
5... exd5 {[%clk 0:02:57]} 6. Bg5 {[%clk 0:02:56.1]} 6... Be6 {[%clk 0:02:57]}
7. e3 {[%clk 0:02:51.6]} 7... Nbd7 {[%clk 0:02:56.1]} 8. Bd3 {[%clk 0:02:49]}
8... c6 {[%clk 0:02:55.7]} 9. O-O {[%clk 0:02:47.5]} 9... Bd6 {[%clk 0:02:55.5]}
10. a3 {[%clk 0:02:35.5]} 10... O-O {[%clk 0:02:54.7]} 11. b4 {[%clk 0:02:33.1]}
11... h6 {[%clk 0:02:44.5]} 12. Bf4 {[%clk 0:02:32.9]} 12... Qc7 {[%clk
0:02:38.7]} 13. Bxd6 {[%clk 0:02:31.5]} 13... Qxd6 {[%clk 0:02:39.6]} 14. Rb1
{[%clk 0:02:27.4]} 14... b5 {[%clk 0:02:30.9]} 15. Nd2 {[%clk 0:02:21.9]} 15...
a5 {[%clk 0:02:15]} 16. bxa5 {[%clk 0:02:00.5]} 16... Rxa5 {[%clk 0:02:05.9]}
17. a4 {[%clk 0:02:00.4]} 17... b4 {[%clk 0:01:44.7]} 18. Na2 {[%clk 0:01:59.7]}
18... Rb8 {[%clk 0:01:44.6]} 19. Bc2 {[%clk 0:01:30.8]} 19... c5 {[%clk
0:01:14.8]} 20. dxc5 {[%clk 0:01:19.9]} 20... Nxc5 {[%clk 0:01:01.6]} 21. Rxb4
{[%clk 0:00:58]} 21... Rxb4 {[%clk 0:00:55.6]} 22. Nxb4 {[%clk 0:00:58.9]} 22...
Nxa4 {[%clk 0:00:55.6]} 23. Nd3 {[%clk 0:00:53.6]} 23... Nc3 {[%clk 0:00:50.5]}
24. Qf3 {[%clk 0:00:52.1]} 24... Ra2 {[%clk 0:00:44.9]} 25. Rc1 {[%clk
0:00:51.7]} 25... Bg4 {[%clk 0:00:43.2]} 0-1

[Event "*** SCC Grand Prix: Titled Tuesday Blitz"]
[Site "Chess.com"]
[Date "2020.07.07"]
[Round "1"]
[White "Blagorod"]
[Black "Oglob71"]
[Result "1/2-1/2"]
[WhiteElo "2097"]
[BlackElo "2498"]
[TimeControl "180+1"]
[EndTime "10:06:01 PDT"]
[Termination "Game drawn by repetition"]

1. e4 {[%clk 0:03:00.5]} 1... c5 {[%clk 0:02:59.2]} 2. Nc3 {[%clk 0:03:00.4]}
2... a6 {[%clk 0:02:55.5]} 3. g3 {[%clk 0:02:57.9]} 3... b5 {[%clk 0:02:55.3]}
4. Bg2 {[%clk 0:02:58.2]} 4... Bb7 {[%clk 0:02:56.2]} 5. d3 {[%clk 0:02:57.5]}
5... e6 {[%clk 0:02:54.8]} 6. f4 {[%clk 0:02:52.2]} 6... Nf6 {[%clk 0:02:53.9]}
7. Nf3 {[%clk 0:02:49.3]} 7... b4 {[%clk 0:02:54.2]} 8. Ne2 {[%clk 0:02:48.7]}
8... d5 {[%clk 0:02:54.7]} 9. e5 {[%clk 0:02:47.4]} 9... Nfd7 {[%clk 0:02:54.6]}
10. O-O {[%clk 0:02:46.5]} 10... Nc6 {[%clk 0:02:55.5]} 11. Be3 {[%clk
0:02:42.5]} 11... a5 {[%clk 0:02:55.1]} 12. c3 {[%clk 0:02:39.8]} 12... a4
{[%clk 0:02:55.3]} 13. d4 {[%clk 0:02:33.5]} 13... a3 {[%clk 0:02:55.4]} 14. b3
{[%clk 0:02:31.1]} 14... bxc3 {[%clk 0:02:54.9]} 15. dxc5 {[%clk 0:02:19]} 15...
Qa5 {[%clk 0:02:51]} 16. Rc1 {[%clk 0:02:06.9]} 16... Ba6 {[%clk 0:02:50.6]} 17.
Re1 {[%clk 0:02:04.4]} 17... Bxe2 {[%clk 0:02:47.1]} 18. Rxe2 {[%clk 0:02:03.6]}
18... Bxc5 {[%clk 0:02:48]} 19. Kh1 {[%clk 0:01:50.8]} 19... Rc8 {[%clk
0:02:47.5]} 20. Bxc5 {[%clk 0:01:29.1]} 20... Qxc5 {[%clk 0:02:44.8]} 21. Rec2
{[%clk 0:01:28.9]} 21... Nb4 {[%clk 0:02:42.9]} 22. Rxc3 {[%clk 0:01:27]} 22...
Qxc3 {[%clk 0:02:43.8]} 23. Rxc3 {[%clk 0:01:27.1]} 23... Rxc3 {[%clk
0:02:43.7]} 24. Qd2 {[%clk 0:01:25.9]} 24... d4 {[%clk 0:02:23.3]} 25. Nxd4
{[%clk 0:01:23.2]} 25... Nxa2 {[%clk 0:02:23.5]} 26. Bc6 {[%clk 0:01:12.6]}
26... O-O {[%clk 0:02:12.8]} 27. Bxd7 {[%clk 0:01:05.5]} 27... Rd8 {[%clk
0:02:11.9]} 28. Qxa2 {[%clk 0:00:57.5]} 28... Rxd7 {[%clk 0:02:11.2]} 29. Ne2
{[%clk 0:00:54]} 29... Rcd3 {[%clk 0:01:59.6]} 30. Qxa3 {[%clk 0:00:49.9]} 30...
h5 {[%clk 0:01:59]} 31. Kg2 {[%clk 0:00:45.2]} 31... Rd2 {[%clk 0:01:58.9]} 32.
Kf2 {[%clk 0:00:41.7]} 32... R7d3 {[%clk 0:01:58.7]} 33. Qa8+ {[%clk 0:00:38]}
33... Kh7 {[%clk 0:01:59.1]} 34. b4 {[%clk 0:00:37.8]} 34... Rb3 {[%clk
0:01:57.7]} 35. Qe4+ {[%clk 0:00:29.8]} 35... g6 {[%clk 0:01:57.9]} 36. h3
{[%clk 0:00:28.3]} 36... Rdb2 {[%clk 0:01:57.4]} 37. Qb7 {[%clk 0:00:21.2]}
37... Kg7 {[%clk 0:01:55.2]} 38. Qe7 {[%clk 0:00:21.3]} 38... Rxb4 {[%clk
0:01:54.6]} 39. Qf6+ {[%clk 0:00:21.6]} 39... Kg8 {[%clk 0:01:55.5]} 40. Qd8+
{[%clk 0:00:21.2]} 40... Kh7 {[%clk 0:01:54.3]} 41. Qf6 {[%clk 0:00:18.9]} 41...
Rb7 {[%clk 0:01:54.7]} 42. g4 {[%clk 0:00:18.7]} 42... hxg4 {[%clk 0:01:54.6]}
43. hxg4 {[%clk 0:00:18.6]} 43... Kg8 {[%clk 0:01:55.5]} 44. Qd8+ {[%clk
0:00:17.5]} 44... Kg7 {[%clk 0:01:56]} 45. Qf6+ {[%clk 0:00:17.8]} 45... Kg8
{[%clk 0:01:56.9]} 46. Qd8+ {[%clk 0:00:17.7]} 46... Kh7 {[%clk 0:01:57.1]} 47.
Qh4+ {[%clk 0:00:17.7]} 47... Kg8 {[%clk 0:01:54.8]} 48. Qd8+ {[%clk 0:00:17.7]}
1/2-1/2

[Event "*** SCC Grand Prix: Titled Tuesday Blitz"]
[Site "Chess.com"]
[Date "2020.07.07"]
[Round "1"]
[White "platy3"]
[Black "jerry_77"]
[Result "1-0"]
[WhiteElo "2791"]
[BlackElo "2412"]
[TimeControl "180+1"]
[EndTime "10:06:02 PDT"]
[Termination "platy3 won by resignation"]

1. e4 {[%clk 0:02:59]} 1... c6 {[%clk 0:03:00]} 2. Nf3 {[%clk 0:02:56.9]} 2...
d5 {[%clk 0:03:00.6]} 3. d3 {[%clk 0:02:57.4]} 3... dxe4 {[%clk 0:03:00.1]} 4.
dxe4 {[%clk 0:02:58.2]} 4... Qxd1+ {[%clk 0:03:00.7]} 5. Kxd1 {[%clk 0:02:59]}
5... Bg4 {[%clk 0:03:01.3]} 6. Be2 {[%clk 0:02:58.6]} 6... Nf6 {[%clk
0:02:59.1]} 7. Nfd2 {[%clk 0:02:58.7]} 7... Nbd7 {[%clk 0:02:57.1]} 8. a4 {[%clk
0:02:57.4]} 8... e5 {[%clk 0:02:54.9]} 9. f3 {[%clk 0:02:52.9]} 9... Be6 {[%clk
0:02:54.8]} 10. Bc4 {[%clk 0:02:48.5]} 10... Bxc4 {[%clk 0:02:54.2]} 11. Nxc4
{[%clk 0:02:49.4]} 11... Be7 {[%clk 0:02:39.3]} 12. Be3 {[%clk 0:02:47.2]} 12...
b6 {[%clk 0:02:32.9]} 13. Nbd2 {[%clk 0:02:45.1]} 13... Bd8 {[%clk 0:02:29.7]}
14. Nd6+ {[%clk 0:02:40.8]} 14... Ke7 {[%clk 0:02:29.7]} 15. Nf5+ {[%clk
0:02:35.1]} 15... Kf8 {[%clk 0:02:29.1]} 16. c3 {[%clk 0:02:28.8]} 16... Bc7
{[%clk 0:02:27.8]} 17. Kc2 {[%clk 0:02:27.7]} 17... g6 {[%clk 0:02:28.3]} 18.
Ng3 {[%clk 0:02:25.5]} 18... Ke7 {[%clk 0:02:27.7]} 19. Nc4 {[%clk 0:02:20.2]}
19... Nf8 {[%clk 0:02:24]} 20. a5 {[%clk 0:02:17.9]} 20... b5 {[%clk 0:02:22.5]}
21. Bc5+ {[%clk 0:01:48.9]} 21... Ke6 {[%clk 0:02:21]} 22. Bxf8 {[%clk
0:01:48.1]} 22... Rhxf8 {[%clk 0:02:19.4]} 23. Nd2 {[%clk 0:01:48.7]} 23... a6
{[%clk 0:02:17.4]} 24. Nb3 {[%clk 0:01:46.2]} 24... Bd6 {[%clk 0:02:17.2]} 25.
Rhd1 {[%clk 0:01:44.1]} 25... Rfd8 {[%clk 0:02:10.4]} 26. Rd2 {[%clk 0:01:44]}
26... Be7 {[%clk 0:01:53]} 27. Rad1 {[%clk 0:01:36.6]} 27... Rxd2+ {[%clk
0:01:50.9]} 28. Rxd2 {[%clk 0:01:37.5]} 28... c5 {[%clk 0:01:49.3]} 29. c4
{[%clk 0:01:10.3]} 29... bxc4 {[%clk 0:01:45.4]} 30. Nc1 {[%clk 0:01:10.7]}
30... Ne8 {[%clk 0:01:45.6]} 31. Nf1 {[%clk 0:01:10.4]} 31... Rb8 {[%clk
0:01:44.2]} 32. Ne3 {[%clk 0:01:10.3]} 32... Nd6 {[%clk 0:01:40.8]} 33. Ne2
{[%clk 0:01:07.8]} 33... Rb5 {[%clk 0:01:34.6]} 34. Nc3 {[%clk 0:01:00.8]} 34...
Rxa5 {[%clk 0:01:33]} 35. Kb1 {[%clk 0:01:01.1]} 35... Bg5 {[%clk 0:01:17]} 36.
Rxd6+ {[%clk 0:01:00.2]} 36... Kxd6 {[%clk 0:01:14.6]} 37. Nxc4+ {[%clk
0:01:00.7]} 37... Ke6 {[%clk 0:01:11.8]} 38. Nxa5 {[%clk 0:01:01.2]} 38... Be3
{[%clk 0:01:11.2]} 39. Nc4 {[%clk 0:01:00.8]} 39... Bd4 {[%clk 0:01:11.7]} 40.
Kc2 {[%clk 0:01:00]} 40... f5 {[%clk 0:01:11.2]} 41. Kd3 {[%clk 0:00:59]} 41...
h5 {[%clk 0:01:05.3]} 42. b3 {[%clk 0:00:58.3]} 42... h4 {[%clk 0:01:04.6]} 43.
h3 {[%clk 0:00:58]} 43... Kf6 {[%clk 0:01:00.4]} 44. Nd5+ {[%clk 0:00:57.8]}
44... Kg5 {[%clk 0:01:00.8]} 45. Nd6 {[%clk 0:00:53.9]} 45... fxe4+ {[%clk
0:00:59.9]} 46. Kxe4 {[%clk 0:00:52.4]} 1-0

[Event "*** SCC Grand Prix: Titled Tuesday Blitz"]
[Site "Chess.com"]
[Date "2020.07.07"]
[Round "1"]
[White "RestartingChess"]
[Black "Margarita2907"]
[Result "1-0"]
[WhiteElo "2503"]
[BlackElo "2085"]
[TimeControl "180+1"]
[EndTime "10:06:04 PDT"]
[Termination "RestartingChess won by resignation"]

1. e4 {[%clk 0:03:00.9]} 1... c5 {[%clk 0:02:58]} 2. Nf3 {[%clk 0:03:01]} 2...
d6 {[%clk 0:02:57.8]} 3. Bb5+ {[%clk 0:03:00.7]} 3... Nd7 {[%clk 0:02:56.9]} 4.
c4 {[%clk 0:03:00.9]} 4... a6 {[%clk 0:02:52.6]} 5. Bxd7+ {[%clk 0:03:00.6]}
5... Bxd7 {[%clk 0:02:52.2]} 6. Nc3 {[%clk 0:03:01.5]} 6... Nf6 {[%clk
0:02:51.9]} 7. d4 {[%clk 0:03:01.9]} 7... cxd4 {[%clk 0:02:50.4]} 8. Qxd4 {[%clk
0:03:02.6]} 8... g6 {[%clk 0:02:47.6]} 9. Bg5 {[%clk 0:02:58.5]} 9... Bg7 {[%clk
0:02:47.3]} 10. Qd2 {[%clk 0:02:58.6]} 10... O-O {[%clk 0:02:45.7]} 11. O-O
{[%clk 0:02:57.6]} 11... Rc8 {[%clk 0:02:42.2]} 12. b3 {[%clk 0:02:56.8]} 12...
Qc7 {[%clk 0:02:32.8]} 13. Bxf6 {[%clk 0:02:51]} 13... Bxf6 {[%clk 0:02:31.9]}
14. Nd5 {[%clk 0:02:51.6]} 14... Qc5 {[%clk 0:02:27.4]} 15. Nxf6+ {[%clk
0:02:52]} 15... exf6 {[%clk 0:02:28.3]} 16. Rad1 {[%clk 0:02:52.4]} 16... Bc6
{[%clk 0:02:25.9]} 17. Qxd6 {[%clk 0:02:48.2]} 17... Qxd6 {[%clk 0:02:18.3]} 18.
Rxd6 {[%clk 0:02:49.1]} 18... Bxe4 {[%clk 0:02:18.8]} 19. Rxf6 {[%clk
0:02:49.5]} 19... Kg7 {[%clk 0:02:16.6]} 20. Rf4 {[%clk 0:02:49.8]} 20... Bc6
{[%clk 0:02:15]} 21. Ne5 {[%clk 0:02:46.3]} 21... Rcd8 {[%clk 0:02:11.2]} 22.
Nxc6 {[%clk 0:02:02.5]} 22... bxc6 {[%clk 0:02:12.1]} 23. Re1 {[%clk 0:02:00]}
23... Rd2 {[%clk 0:02:09.6]} 24. h4 {[%clk 0:01:53.4]} 24... Rxa2 {[%clk
0:02:08.2]} 25. Re7 {[%clk 0:01:53]} 25... Rb2 {[%clk 0:02:05.2]} 26. Rf3 {[%clk
0:01:53.3]} 26... h5 {[%clk 0:01:25.5]} 27. Rc7 {[%clk 0:01:50.7]} 27... a5
{[%clk 0:01:17.4]} 28. Rxc6 {[%clk 0:01:49.6]} 28... Rb8 {[%clk 0:01:12.4]} 29.
Rc7 {[%clk 0:01:49.2]} 29... R8xb3 {[%clk 0:01:11.9]} 30. Rfxf7+ {[%clk
0:01:48.8]} 30... Kg8 {[%clk 0:01:05.9]} 31. Rg7+ {[%clk 0:01:48.9]} 31... Kf8
{[%clk 0:01:02.1]} 32. Rxg6 {[%clk 0:01:49.1]} 32... a4 {[%clk 0:00:48.1]} 33.
Ra6 {[%clk 0:01:45.5]} 33... Rb8 {[%clk 0:00:23.6]} 34. Rxa4 {[%clk 0:01:43.2]}
34... Re2 {[%clk 0:00:20.5]} 35. Ra5 {[%clk 0:01:39.9]} 35... Ke8 {[%clk
0:00:16.1]} 36. Rxh5 {[%clk 0:01:38.4]} 36... Rb1+ {[%clk 0:00:15.4]} 37. Kh2
{[%clk 0:01:38.6]} 37... Kd8 {[%clk 0:00:15]} 38. Ra7 {[%clk 0:01:36.8]} 38...
Re8 {[%clk 0:00:10.5]} 39. Ra8+ {[%clk 0:01:35.8]} 39... Ke7 {[%clk 0:00:10.2]}
40. Rh7+ {[%clk 0:01:36.2]} 40... Kf8 {[%clk 0:00:09.6]} 41. Rh8+ {[%clk
0:01:35.4]} 1-0